bitfinex/quotes_ETHUSD_20241217
["timestamp","ask_amount","ask_price","bid_price","bid_amount"]
[1734406455139,0.7998,4025.7,4024.2,1.03218195]
[1734406455294,0.7998,4025.5,4024.2,1.03218195]
[1734406455624,0.81620985,4025.4,4024.3,2.13018436]
[1734406455821,0.81620985,4025.4,4024.4,0.32869475]
[1734406456034,0.81620985,4025.4,4024.1,1.15676309]
[1734406456191,0.81620985,4025.4,4024.2,2.13021135]
[1734406456377,0.81620985,4025.4,4024.3,5.13058408]
[1734406456578,0.7998,4025.4,4024.4,3.0]
[1734406456784,0.7998,4025.4,4024.1,1.15676309]
[1734406457019,0.7998,4025.4,4024.2,2.79319451]
[1734406457222,0.7998,4025.4,4024.3,5.13031427]
[1734406457548,0.7998,4025.4,4024.2,0.66288024]
[1734406457730,0.7998,4025.4,4024.3,0.85211811]
[1734406458091,0.7998,4025.4,4024.4,1.27807369]
[1734406458299,0.7998,4025.4,4024.5,1.83464351]
[1734406458623,0.7998,4025.4,4024.5,0.9825254]
[1734406458826,0.7998,4025.4,4024.2,1.69506219]
[1734406459124,0.7998,4025.2,4024.3,5.13087966]
[1734406459324,0.7998,4025.2,4024.2,0.66288024]
[1734406459629,0.7998,4025.2,4024.3,0.85284943]
[1734406460824,0.7998,4025.2,4024.2,0.66288024]
[1734406461122,0.7998,4025.2,4024.0,4.03218195]
[1734406461333,0.7998,4025.2,4024.3,0.02228624]
[1734406461520,0.7998,4025.2,4023.9,2.07916584]
[1734406461722,0.7998,4025.2,4024.4,0.02353801]
[1734406461932,0.01640985,4025.9,4023.9,2.07916584]
[1734406462098,0.7993,4026.0,4024.7,1.03218195]
[1734406462426,0.7993,4026.0,4024.9,3.0]
[1734406462639,0.7993,4026.0,4025.0,5.15159706]
[1734406462849,0.7993,4026.0,4025.1,3.85135697]
[1734406463002,0.7993,4026.0,4025.1,0.87463294]
[1734406463197,0.7993,4026.0,4025.2,3.0]
[1734406463404,0.7993,4026.0,4025.3,0.3023276]
[1734406463606,0.7993,4026.0,4025.3,2.45271475]
[1734406463860,0.7993,4026.0,4025.3,0.32558954]
[1734406463997,0.7993,4027.0,4025.4,1.04148526]
[1734406464197,0.7993,4027.0,4025.5,5.12693012]
[1734406464435,0.7993,4027.0,4025.6,0.85081833]
[1734406464815,0.7993,4026.9,4025.7,0.02295739]
[1734406465819,0.7993,4026.9,4025.4,0.7758]
[1734406466001,0.7993,4026.9,4025.4,0.89931051]
[1734406466199,0.7993,4026.9,4025.5,0.85067973]
[1734406466430,0.7993,4026.7,4025.5,0.87340364]
[1734406466608,0.7993,4026.7,4025.5,0.02272391]
[1734406470671,0.81570985,4026.6,4025.5,0.02272391]
[1734406470825,0.55,4026.5,4025.5,0.02272391]
[1734406471029,1.3493,4026.3,4025.5,0.02272391]
[1734406471251,0.7993,4026.1,4025.3,0.008198]
[1734406471562,0.7993,4025.9,4025.3,0.008198]
[1734406472263,0.7993,4025.9,4025.4,0.02225795]
[1734406472570,0.01640985,4025.8,4025.3,0.008198]
[1734406472744,0.7993,4025.7,4025.3,0.008198]
[1734406476168,0.01640985,4025.6,4025.3,0.008198]
[1734406476367,0.7993,4025.5,4025.3,0.008198]
[1734406476539,1.3493,4025.4,4025.3,0.008198]
[1734406476739,1.73156119,4025.4,4025.3,0.008198]
[1734406479168,1.16515134,4025.4,4025.3,0.008198]
[1734406480780,1.71515134,4025.4,4025.3,0.008198]
[1734406481776,1.73156119,4025.4,4025.3,0.008198]
[1734406482770,1.71515134,4025.4,4025.3,0.008198]
[1734406484387,1.3493,4025.4,4025.3,0.008198]
[1734406486282,0.7993,4025.4,4025.3,0.008198]
[1734406489916,0.81570985,4025.4,4025.3,0.008198]
[1734406490114,0.55,4026.0,4025.3,0.008198]
[1734406490417,0.55,4026.0,4025.3,0.03021596]
[1734406490621,0.55,4025.8,4025.3,0.008198]
[1734406490973,0.13597,4025.9,4025.3,0.008198]
[1734406491176,3.11891344,4026.1,4025.3,0.008198]
[1734406492485,3.11891344,4026.1,4025.4,0.0220016]
[1734406492486,0.8097,4026.1,4025.4,0.0220016]
[1734406492687,0.8097,4026.1,4025.4,0.8306]
[1734406493001,0.8097,4026.1,4025.5,0.02200024]
[1734406493887,0.01640985,4026.0,4025.3,0.008198]
[1734406494187,0.55,4026.0,4025.3,0.008198]
[1734406494389,3.11891344,4026.1,4025.3,0.008198]
[1734406494607,0.8097,4026.1,4025.4,0.02704065]
[1734406497711,0.01640985,4026.0,4025.4,0.02704065]
[1734406498220,0.01640985,4026.0,4025.3,0.008198]
[1734406501094,0.8097,4026.1,4025.3,0.008198]
[1734406503820,0.01640985,4026.0,4025.3,0.008198]
[1734406504191,0.8097,4026.1,4025.3,0.008198]
[1734406504632,0.55,4026.0,4025.3,0.008198]
[1734406504818,0.55,4025.8,4025.3,0.008198]
[1734406505998,0.752,4025.7,4025.3,0.008198]
[1734406508897,0.55,4025.4,4025.3,0.008198]
[1734406509258,2.339043,4025.4,4025.3,0.008198]
[1734406509426,3.52970834,4025.4,4025.3,0.008198]
[1734406509633,4.51757797,4025.4,4025.3,0.008198]
[1734406509921,3.47960836,4025.4,4025.3,0.008198]
[1734406510090,4.51760254,4025.4,4025.3,0.008198]
[1734406510289,4.51742709,4025.4,4025.3,0.008198]
[1734406510544,3.47960836,4025.4,4025.3,0.008198]
[1734406510923,6.47960836,4025.4,4025.3,0.008198]
[1734406511138,0.752,4024.8,4023.3,0.7796]
[1734406511310,0.55,4024.1,4023.3,0.7796]
[1734406511658,0.55,4024.1,4023.4,0.02206289]
[1734406512023,2.30921344,4024.2,4023.4,0.02206289]
[1734406512821,2.30921344,4024.6,4023.4,0.02206289]
[1734406514236,2.30921344,4024.2,4023.4,0.02206289]
[1734406515622,0.36112134,4024.6,4023.4,0.02206289]
[1734406515623,2.67033478,4024.6,4023.4,0.02206289]
[1734406515936,2.30921344,4024.6,4023.5,0.7823]
[1734406516322,2.30921344,4024.6,4023.6,0.02223597]
[1734406517304,2.30921344,4024.6,4023.7,0.7823]
[1734406517739,2.30921344,4024.6,4023.8,0.02222759]
[1734406518066,1.03778562,4025.5,4023.8,0.02222759]
[1734406518212,2.30921344,4025.1,4023.9,0.7823]
[1734406518523,1.06004641,4025.4,4024.0,0.7823]
[1734406518524,0.8006,4025.4,4024.0,0.7823]
[1734406518720,0.8006,4025.4,4024.0,0.80521827]
[1734406519545,2.30921344,4025.2,4024.0,0.80521827]
[1734406520710,0.55,4025.1,4024.0,0.80521827]
[1734406520915,0.55,4025.1,4024.0,0.98895829]
[1734406521979,0.8006,4025.8,4024.2,3.0]
[1734406522118,2.30921344,4026.0,4024.2,3.0]
[1734406522119,2.30921344,4026.0,4024.4,3.0]
[1734406522320,2.30921344,4026.0,4024.6,3.7823]
[1734406522560,2.30921344,4026.0,4024.6,0.7823]
[1734406522722,2.30921344,4026.0,4024.7,0.8048385]
[1734406522917,2.30921344,4026.8,4025.0,0.7823]
[1734406523119,2.30921344,4027.2,4025.3,0.7823]
[1734406523368,2.59404328,4027.9,4025.3,0.7823]
[1734406523369,1.03778562,4028.1,4025.9,0.7823]
[1734406523546,1.03778562,4028.4,4026.2,0.7823]
[1734406523712,0.57042775,4028.4,4026.5,0.7823]
[1734406523922,0.57042775,4028.4,4026.6,0.7823]
[1734406524139,0.57042775,4028.4,4026.7,0.7823]
[1734406525562,2.85921344,4028.3,4026.7,0.7823]
[1734406526979,2.30921344,4027.9,4026.7,0.7823]
[1734406528057,1.3506,4027.8,4026.7,0.7823]
[1734406528221,0.55,4027.4,4025.5,0.7823]
[1734406528671,0.55,4027.4,4025.6,0.12148303]
[1734406529531,0.55,4027.4,4025.8,3.0]
[1734406530323,0.55,4027.4,4025.7,0.7731]
[1734406531418,2.30921344,4027.1,4025.7,0.7731]
[1734406531621,0.23092134,4027.0,4025.8,0.05912883]
[1734406531851,0.23092134,4027.0,4025.7,0.7731]
[1734406533979,0.23092134,4027.0,4025.8,0.05890611]
[1734406534179,0.23092134,4027.0,4025.7,0.7731]
[1734406535795,1.04532134,4027.0,4025.8,0.05890018]
[1734406535967,0.33545348,4026.9,4025.8,0.05890018]
[1734406536594,0.33545348,4026.9,4025.7,0.7731]
[1734406537097,0.55,4026.8,4025.8,0.05890982]
[1734406537309,2.30921344,4026.7,4025.8,0.05890982]
[1734406537455,0.86946669,4026.6,4025.8,0.05890982]
[1734406537660,0.86946669,4026.6,4025.3,0.7731]
[1734406537892,0.8144,4026.2,4024.9,0.7731]
[1734406538091,0.31236134,4026.1,4025.4,0.05942888]
[1734406538277,0.31236134,4026.1,4024.9,0.7731]
[1734406539554,0.55,4026.0,4024.9,0.7731]
[1734406539754,0.55,4026.0,4025.0,0.05956138]
[1734406540002,0.55,4026.0,4024.9,0.7731]
[1734406540298,0.16767613,4025.9,4024.9,0.7731]
[1734406540477,0.31236134,4026.1,4024.9,0.7731]
[1734406540661,0.8144,4026.5,4025.1,3.0]
[1734406540884,0.8144,4026.5,4025.2,0.7731]
[1734406541090,0.8144,4026.5,4025.2,0.83280211]
[1734406541356,0.55,4026.5,4025.2,3.83280211]
[1734406541554,0.55,4026.5,4025.2,4.21608232]
[1734406541791,0.55,4026.5,4025.2,1.21608232]
[1734406541997,0.55,4026.5,4025.2,0.83280211]
[1734406542503,0.55,4026.5,4025.2,3.83280211]
[1734406542808,0.55,4026.7,4025.2,0.83280211]
[1734406542980,0.13644,4026.6,4025.2,0.83280211]
[1734406543303,0.55,4026.5,4025.2,0.83280211]
[1734406543611,2.30921344,4026.3,4025.2,0.83280211]
[1734406543773,1.3644,4026.2,4025.2,0.7731]
[1734406543971,1.3644,4026.2,4024.3,0.7731]
[1734406544203,2.30921344,4025.9,4025.3,0.0596298]
[1734406544406,0.55,4025.8,4024.3,0.7731]
[1734406544697,0.55,4025.8,4024.4,0.05970959]
[1734406545386,0.815,4025.7,4024.4,0.05970959]
[1734406545608,0.36742134,4025.6,4024.3,0.7731]
[1734406546666,2.30921344,4025.5,4024.3,0.7731]
[1734406546867,0.55,4025.4,4024.3,0.7731]
[1734406549211,2.30921344,4025.1,4024.3,0.7731]
[1734406549440,0.55,4024.9,4024.3,0.7731]
[1734406549940,0.55,4024.9,4023.1,0.12272137]
[1734406550145,0.55,4024.6,4023.1,0.8087]
[1734406550310,0.55,4024.6,4023.2,0.0611721]
[1734406551243,0.55,4024.6,4023.3,0.8087]
[1734406551611,0.55,4024.6,4023.4,0.06118763]
[1734406551827,0.83592134,4024.6,4023.4,0.06118763]
[1734406553845,0.55,4024.9,4023.5,0.8087]
[1734406554060,0.55,4024.9,4023.5,0.86987643]
[1734406555559,0.55,4024.9,4023.5,0.8087]
[1734406555761,0.36742134,4024.8,4023.5,0.8087]
[1734406558164,2.85921344,4024.7,4023.5,0.8087]
[1734406558570,2.85921344,4024.7,4023.6,0.06195975]
[1734406558864,2.85921344,4024.7,4023.7,0.06195498]
[1734406559372,6.18921344,4024.7,4023.5,0.8087]
[1734406559518,6.18921344,4024.7,4023.8,0.06197782]
[1734406559718,0.55,4024.5,4023.6,0.06199379]
[1734406559955,0.55,4024.5,4023.9,0.06196984]
[1734406560171,0.55,4024.5,4023.5,0.8087]
[1734406561217,0.55,4024.2,4023.1,0.8132]
[1734406563513,0.55,4024.2,4023.2,0.06205206]
[1734406563931,0.55,4024.2,4023.1,0.8132]
[1734406564173,0.55,4024.3,4023.3,0.06204729]
[1734406564382,0.55,4024.3,4023.1,0.8132]
[1734406564589,3.33,4024.2,4023.1,0.8132]
[1734406564883,0.55,4024.1,4023.2,0.06204885]
[1734406565234,0.55,4024.1,4023.1,0.8132]
[1734406566266,3.33,4024.2,4023.1,0.8132]
[1734406566476,3.33,4024.2,4022.4,0.0248555]
[1734406566477,3.33,4024.2,4022.5,0.8132]
[1734406566841,3.33,4024.2,4022.7,0.8132]
[1734406567041,6.66,4024.2,4022.8,0.06209044]
[1734406567367,6.66,4024.2,4022.8,0.8132]
[1734406567566,6.66,4024.2,4023.0,0.8132]
[1734406568785,6.66,4024.2,4023.2,3.0]
[1734406568968,6.66,4024.2,4023.3,0.38132]
[1734406569152,6.66,4024.2,4023.3,0.06205051]
[1734406569343,6.66,4024.2,4023.0,0.8132]
[1734406570043,6.66,4024.2,4023.3,0.8132]
[1734406570241,3.33,4024.1,4023.5,0.8132]
[1734406570485,3.33,4024.1,4023.7,3.0]
[1734406570781,3.33,4024.1,4023.0,0.02485059]
[1734406570782,3.33,4024.1,4023.9,0.8132]
[1734406572874,6.66,4024.1,4023.9,0.8132]
[1734406573441,6.66,4024.1,4024.0,0.06206224]
[1734406574247,6.66,4024.1,4023.9,0.8132]
[1734406574465,6.66,4024.1,4024.0,0.06205581]
[1734406574866,6.66,4024.1,4023.9,0.8132]
[1734406575213,6.66,4024.1,4024.0,0.06205903]
[1734406575708,6.66,4024.1,4023.9,0.8132]
[1734406577664,6.66,4024.1,4024.0,0.05959725]
[1734406577867,6.66,4024.1,4023.9,0.8132]
[1734406578484,6.66,4024.1,4024.0,0.05960047]
[1734406579016,6.66,4024.1,4024.0,0.44688052]
[1734406579180,6.66,4024.1,4024.0,0.05960047]
[1734406581018,6.59643882,4024.1,4024.0,4.6738414]
[1734406581198,6.59643882,4024.1,4024.0,1.85458242]
[1734406581397,6.59643882,4024.1,4024.0,4.85458242]
[1734406581598,6.59643882,4024.1,4024.0,8.04249497]
[1734406581839,6.59643882,4024.1,4024.0,7.01031302]
[1734406582141,6.59643882,4024.1,4024.0,8.04015113]
[1734406582341,6.59643882,4024.1,4024.0,7.01031302]
[1734406583836,6.59643882,4024.1,4024.0,7.01164368]
[1734406584073,6.43893882,4024.1,4024.0,7.01164368]
[1734406584207,6.43893882,4024.1,4024.0,10.26277314]
[1734406584418,6.43893882,4024.1,4024.0,7.01164368]
[1734406584621,6.19673882,4024.1,4024.0,7.01164368]
[1734406584941,6.19673882,4024.1,4024.0,10.38485436]
[1734406585515,6.19673882,4024.1,4024.0,7.13362477]
[1734406585716,9.52673882,4024.1,4024.0,7.13362477]
[1734406585917,9.52673882,4024.1,4024.0,10.38482839]
[1734406586157,9.52673882,4024.1,4024.0,7.13362477]
[1734406586981,9.52673882,4024.1,4024.0,10.38492694]
[1734406587550,9.52673882,4024.1,4024.0,8.83766053]
[1734406588148,12.85673882,4024.1,4024.0,10.38352206]
[1734406588689,12.85673882,4024.1,4024.0,10.38467075]
[1734406588870,12.77150983,4024.1,4024.0,10.38467075]
[1734406589074,12.77150983,4024.1,4024.0,8.83880922]
[1734406589275,12.77150983,4024.1,4024.0,10.9018311]
[1734406589645,12.77150983,4024.1,4024.0,13.4499101]
[1734406589841,12.77150983,4024.1,4024.0,11.09763222]
[1734406590087,12.77150983,4024.1,4024.0,8.83880922]
[1734406590447,12.51950983,4024.1,4024.0,8.83880922]
[1734406590669,15.84950983,4024.1,4024.0,8.83880922]
[1734406592347,15.84950983,4024.1,4024.0,10.90008095]
[1734406592966,15.84950983,4024.1,4024.0,8.83880922]
[1734406593461,15.84950983,4024.1,4024.0,10.38460068]
[1734406593668,19.17950983,4024.1,4024.0,10.38460068]
[1734406594598,19.17950983,4024.1,4024.0,8.83851711]
[1734406594796,19.17950983,4024.1,4024.0,10.38457895]
[1734406596064,19.17950983,4024.1,4024.0,10.50784196]
[1734406596263,22.50950983,4024.1,4024.0,10.50784196]
[1734406596483,22.50950983,4024.1,4024.0,10.38457895]
[1734406597774,22.50950983,4024.1,4024.0,6.37168135]
[1734406597972,22.50950983,4024.1,4024.0,2.19035633]
[1734406598208,23.29510983,4024.1,4024.0,2.19035633]
[1734406598411,23.29510983,4024.1,4023.7,1.03101448]
[1734406598557,23.29510983,4024.1,4023.7,1.15539646]
[1734406598758,23.29510983,4024.1,4023.8,2.13162165]
[1734406598958,23.29510983,4024.1,4023.9,2.13162165]
[1734406599160,26.62510983,4024.1,4024.0,0.85264428]
[1734406599508,25.83950983,4024.1,4023.8,0.85264428]
[1734406599881,25.83950983,4024.1,4023.9,0.05888607]
[1734406600469,25.83950983,4024.1,4023.7,0.12293698]
[1734406600669,25.83950983,4024.1,4023.8,0.91149388]
[1734406600872,25.83950983,4024.1,4023.6,1.03101448]
[1734406601180,25.83950983,4024.1,4023.7,3.0]
[1734406601402,25.83950983,4024.1,4023.8,0.85263508]
[1734406601712,25.83950983,4024.1,4023.9,0.85263508]
[1734406601915,29.16950983,4024.1,4023.7,1.03101448]
[1734406602373,29.16950983,4024.1,4023.7,4.90707235]
[1734406602575,29.16950983,4024.1,4023.8,2.19015445]
[1734406602777,29.16950983,4024.1,4023.9,2.13126025]
[1734406602971,29.16950983,4024.1,4023.9,3.0]
[1734406603177,29.16950983,4024.1,4023.7,2.03137959]
[1734406603422,29.16950983,4024.1,4023.8,5.13149627]
[1734406603581,29.16950983,4024.1,4023.9,3.85259851]
[1734406603776,29.16950983,4024.1,4023.8,0.0588871]
[1734406603977,29.16950983,4024.1,4023.9,2.13144912]
[1734406604203,29.16950983,4024.1,4023.7,1.15532172]
[1734406604413,29.16950983,4024.1,4023.8,2.13153845]
[1734406604618,32.49950983,4024.1,4023.8,2.13153845]
[1734406604922,32.49950983,4024.1,4023.8,5.13153845]
[1734406605090,32.49950983,4024.1,4023.9,5.13153845]
[1734406605297,32.49950983,4024.1,4023.7,1.83068429]
[1734406605603,32.49950983,4024.1,4023.8,4.87456824]
[1734406605806,32.49950983,4024.1,4023.9,4.87456824]
[1734406606007,32.49950983,4024.1,4023.8,3.0]
[1734406606211,32.49950983,4024.1,4023.9,0.85265517]
[1734406607795,35.82950983,4024.1,4023.9,0.85265517]
[1734406607994,35.82950983,4024.1,4024.0,0.85276691]
[1734406608597,35.82950983,4024.1,4024.0,1.33354512]
[1734406608782,35.82950983,4024.1,4024.0,7.86938593]
[1734406608981,35.82950983,4024.1,4024.0,6.38060117]
[1734406609177,35.82950983,4024.1,4024.0,8.4418729]
[1734406609419,35.72161403,4024.1,4024.0,6.38060117]
[1734406609591,35.72161403,4024.1,4024.0,7.56258369]
[1734406609783,35.72161403,4024.1,4024.0,9.6249814]
[1734406610296,35.72161403,4024.1,4024.0,11.07259669]
[1734406610297,34.77447059,4024.1,4024.0,11.07259669]
[1734406610496,38.10447059,4024.1,4024.0,7.56258369]
[1734406611923,38.10447059,4024.1,4024.0,9.6252786]
[1734406612323,38.10447059,4024.1,4024.0,7.56258369]
[1734406612683,38.10447059,4024.1,4024.0,7.56284387]
[1734406612883,41.43447059,4024.1,4024.0,7.56284387]
[1734406613103,41.43447059,4024.1,4024.0,9.62602692]
[1734406613316,41.43447059,4024.1,4024.0,7.56284387]
[1734406614003,41.43447059,4024.1,4024.0,9.62629775]
[1734406614221,41.43447059,4024.1,4024.0,7.56284387]
[1734406615408,44.76447059,4024.1,4024.0,7.56284387]
[1734406615617,44.76447059,4024.1,4024.0,8.84280723]
[1734406615818,44.76447059,4024.1,4024.0,8.78553015]
[1734406616037,44.76447059,4024.1,4024.0,8.84069061]
[1734406616533,44.76447059,4024.1,4024.0,11.41975968]
[1734406616903,44.76447059,4024.1,4024.0,8.84069061]
[1734406617850,44.76447059,4024.1,4024.0,8.84131724]
[1734406617991,48.09447059,4024.1,4024.0,8.84131724]
[1734406618431,48.09447059,4024.1,4024.0,10.14061177]
[1734406619709,48.09447059,4024.1,4024.0,8.07611724]
[1734406621329,51.42447059,4024.1,4024.0,8.07683759]
[1734406621840,52.17627059,4024.1,4024.0,2.13433743]
[1734406623101,52.17627059,4024.1,4024.0,1.28060246]
[1734406623345,52.17627059,4024.1,4023.8,2.31354094]
[1734406623658,52.17627059,4024.1,4023.9,1.28060246]
[1734406623862,52.17627059,4024.1,4024.0,1.28060246]
[1734406624193,55.50627059,4024.1,4024.0,1.28060246]
[1734406625145,55.50627059,4024.1,4023.9,1.03293848]
[1734406625356,54.75447059,4024.1,4024.0,5.31354094]
[1734406625659,54.75447059,4024.1,4024.0,2.98804917]
[1734406625959,54.75447059,4024.1,4024.0,5.98804917]
[1734406626811,58.08447059,4024.1,4024.0,5.98804917]
[1734406627054,58.08447059,4024.1,4024.0,7.21985296]
[1734406627412,58.08447059,4024.1,4024.0,13.11044196]
[1734406627413,57.8549093,4024.1,4024.0,13.11044196]
[1734406627808,57.8549093,4024.1,4024.0,13.16359318]
[1734406628273,57.8549093,4024.1,4024.0,12.66264618]
[1734406628457,51.69405182,4024.1,4024.0,15.34633953]
[1734406628610,51.69405182,4024.1,4024.0,15.92124979]
[1734406628806,43.00694647,4024.1,4024.0,15.92124979]
[1734406629328,34.32178123,4024.1,4024.0,15.92124979]
[1734406629549,34.32178123,4024.1,4024.0,19.01867686]
[1734406629860,28.96661599,4024.1,4024.0,15.62235812]
[1734406630027,28.96661599,4024.1,4024.0,18.71978519]
[1734406630228,20.28145075,4024.1,4024.0,18.71978519]
[1734406630426,20.04765075,4024.1,4024.0,18.71978519]
[1734406630623,11.36248551,4024.1,4024.0,18.71978519]
[1734406630861,11.36248551,4024.1,4024.0,14.13254319]
[1734406631065,11.36248551,4024.1,4024.0,11.99884984]
[1734406631250,2.67732027,4024.1,4024.0,35.06961412]
[1734406631675,19.98,4024.2,4024.1,3.0]
[1734406631850,19.98,4024.2,4024.1,9.61779089]
[1734406632672,19.1271,4024.2,4024.1,9.61779089]
[1734406633034,19.1271,4024.2,4024.1,7.48409754]
[1734406635183,19.1271,4024.2,4024.1,7.48286187]
[1734406635338,19.11468845,4024.2,4024.1,7.48286187]
[1734406635733,18.95718845,4024.2,4024.1,7.48286187]
[1734406636869,18.95718845,4024.2,4024.1,7.48241306]
[1734406638159,18.78388845,4024.2,4024.1,7.48241306]
[1734406639284,18.37478845,4024.2,4024.1,7.48241306]
[1734406639606,17.94498846,4024.2,4024.1,7.48241306]
[1734406640180,17.94498846,4024.2,4024.1,7.48221166]
[1734406642055,17.78748846,4024.2,4024.1,7.48221166]
[1734406643186,17.62998846,4024.2,4024.1,8.33445854]
[1734406643415,17.47248846,4024.2,4024.1,8.33445854]
[1734406643716,17.31498846,4024.2,4024.1,10.91110286]
[1734406643886,17.15748846,4024.2,4024.1,10.91110286]
[1734406644085,17.15748846,4024.2,4024.1,8.33445854]
[1734406644285,16.99998846,4024.2,4024.1,8.33445854]
[1734406644486,11.71601417,4024.2,4024.1,8.61047713]
[1734406644687,0.449111,4024.5,4024.4,0.55]
[1734406644893,1.20477154,4024.7,4024.6,0.55]
[1734406645070,0.784,4026.4,4024.9,0.7902]
[1734406645272,0.784,4026.4,4025.8,3.0]
[1734406645506,0.784,4026.4,4025.9,0.07703104]
[1734406646229,0.784,4027.8,4026.1,1.02821168]
[1734406646372,0.784,4027.8,4026.2,4.2753038]
[1734406646706,0.784,4027.5,4026.3,0.85020253]
[1734406646875,1.55769743,4028.3,4026.3,0.85020253]
[1734406646876,0.784,4027.2,4026.4,0.05215579]
[1734406647202,1.55769743,4028.2,4026.4,0.05215579]
[1734406647203,0.784,4026.9,4026.4,0.05215579]
[1734406647620,0.784,4026.9,4025.5,1.02821168]
[1734406647788,0.784,4026.9,4025.6,3.0]
[1734406647975,0.784,4026.9,4025.7,0.84921241]
[1734406648476,0.784,4026.9,4025.8,0.05217355]
[1734406648905,0.784,4026.7,4025.1,1.02821168]
[1734406649071,0.784,4026.7,4025.2,0.05222138]
[1734406649280,0.784,4026.7,4025.3,0.84921252]
[1734406649477,0.784,4026.7,4025.4,0.05220544]
[1734406649688,0.784,4026.7,4025.0,1.02821168]
[1734406649930,0.784,4026.7,4025.1,1.32588079]
[1734406650104,0.784,4026.7,4025.2,5.12275238]
[1734406650417,0.7502,4026.7,4025.3,0.05221341]
[1734406650714,0.7502,4026.7,4024.9,1.02821168]
[1734406650925,0.7502,4026.7,4025.0,3.05223733]
[1734406651123,0.7502,4026.7,4025.1,5.12229365]
[1734406651330,0.7502,4026.7,4025.0,0.05223733]
[1734406651635,0.7502,4026.5,4025.2,0.05222105]
[1734406651924,0.7502,4026.5,4025.3,0.05193001]
[1734406652283,0.7502,4026.5,4024.8,0.27601859]
[1734406652492,0.7502,4026.5,4024.9,2.17459001]
[1734406652690,0.7502,4026.5,4024.9,0.05196191]
[1734406652895,0.90637882,4026.4,4024.9,0.05196191]
[1734406653107,0.7502,4026.4,4024.9,0.05196191]
[1734406653383,2.85680166,4026.6,4024.9,0.05196191]
[1734406653384,0.7502,4026.2,4024.9,0.05196191]
[1734406653813,0.7502,4026.2,4024.5,1.02821168]
[1734406654028,0.7502,4026.2,4025.0,0.05184273]
[1734406654322,0.7502,4026.2,4024.8,0.27601859]
[1734406654323,0.7502,4026.2,4025.1,0.05183476]
[1734406654695,0.7502,4026.2,4024.5,1.02821168]
[1734406654906,0.7502,4026.0,4024.6,0.05196562]
[1734406655219,0.7502,4025.8,4024.6,0.05196562]
[1734406655721,0.7502,4025.8,4024.7,0.05195764]
[1734406655882,0.7502,4025.8,4024.1,1.02821168]
[1734406656083,0.7502,4025.8,4024.2,1.32676349]
[1734406656313,0.7502,4025.8,4024.3,2.12460993]
[1734406656512,0.7502,4025.6,4024.4,0.90182554]
[1734406656716,0.7502,4025.6,4024.4,0.05198157]
[1734406656928,0.7502,4025.6,4024.0,1.02821168]
[1734406657090,0.7502,4025.6,4024.5,0.05197359]
[1734406657287,0.7502,4025.6,4024.0,1.32907794]
[1734406657520,0.7502,4025.5,4024.6,0.27601859]
[1734406657721,0.7502,4025.5,4024.7,0.05195877]
[1734406658910,0.7502,4025.5,4024.1,1.30423027]
[1734406659230,0.7502,4025.5,4024.2,5.17654225]
[1734406659398,0.7502,4025.5,4024.3,2.1246189]
[1734406659595,0.7502,4025.5,4024.2,0.05199865]
[1734406659911,0.7502,4025.5,4024.3,2.17670393]
[1734406660088,0.7502,4025.5,4024.4,0.84988653]
[1734406660292,0.7502,4025.5,4024.5,0.05197472]
[1734406661002,0.7502,4025.5,4024.2,1.02821168]
[1734406661204,0.7502,4025.5,4024.6,0.05196675]
[1734406661391,0.7502,4025.5,4024.2,1.02821168]
[1734406661728,0.7502,4025.5,4024.2,3.15285003]
[1734406661913,0.7502,4025.5,4024.3,5.17662903]
[1734406662236,0.7502,4025.5,4024.5,4.02821168]
[1734406662403,0.7502,4025.5,4024.7,3.0]
[1734406662734,0.7502,4025.5,4024.8,2.17655691]
[1734406662883,0.7502,4025.5,4024.8,0.05236906]
[1734406663087,0.7502,4025.5,4024.6,1.02821168]
[1734406663282,0.7502,4025.5,4024.7,0.05237704]
[1734406663515,0.7502,4025.5,4024.8,2.1239972]
[1734406663831,0.7502,4025.5,4024.9,0.05236109]
[1734406664332,0.7502,4025.5,4024.5,0.27601859]
[1734406664489,0.7502,4025.5,4025.0,0.0523532]
[1734406664690,0.7502,4025.5,4024.5,0.27601859]
[1734406664893,0.7502,4025.5,4024.6,2.17685543]
[1734406665093,0.7502,4025.5,4024.6,0.05238511]
[1734406665291,0.7502,4025.5,4024.2,4.02821168]
[1734406665517,0.7502,4025.5,4024.3,5.17729038]
[1734406665791,0.7502,4025.5,4024.4,0.84995252]
[1734406666006,0.7502,4025.5,4024.3,0.05240908]
[1734406666206,0.7502,4025.5,4024.5,0.05063805]
[1734406666527,0.7502,4025.5,4024.6,0.05062974]
[1734406666903,0.7502,4025.5,4024.2,1.02821168]
[1734406667102,0.7502,4025.5,4024.3,3.05065367]
[1734406667103,0.7831,4025.4,4024.3,3.05065367]
[1734406667339,0.7831,4025.4,4024.4,2.12571606]
[1734406667547,0.7831,4025.4,4024.3,0.05065367]
[1734406667751,0.7831,4025.4,4024.5,0.05063772]
[1734406667931,0.7831,4025.4,4024.4,0.0506457]
[1734406668131,0.7831,4025.4,4024.6,0.05062974]
[1734406668341,0.7831,4025.4,4024.5,0.05063772]
[1734406668554,0.7831,4025.4,4024.7,0.05062176]
[1734406668747,0.7831,4025.4,4024.6,0.05062974]
[1734406668949,0.7831,4025.4,4024.8,0.05061378]
[1734406669156,0.7831,4025.4,4024.7,0.05062176]
[1734406669462,0.7831,4025.4,4024.9,0.05060581]
[1734406669672,0.7831,4025.4,4024.8,0.05061486]
[1734406669848,0.7831,4025.4,4025.0,0.05059891]
[1734406670060,0.7831,4025.4,4024.9,0.05060689]
[1734406670355,0.7831,4025.4,4025.0,0.05059891]
[1734406670855,0.7831,4025.4,4024.3,1.02821168]
[1734406671057,0.7831,4025.4,4025.1,0.05059093]
[1734406671260,0.7831,4025.4,4024.1,1.02821168]
[1734406671557,0.7831,4025.4,4024.2,3.05066273]
[1734406671761,0.7831,4025.4,4024.3,0.8512275]
[1734406672253,0.7831,4025.4,4024.4,0.05084393]
[1734406672613,0.7831,4025.4,4024.0,4.02821168]
[1734406672812,0.7831,4025.4,4024.5,0.05082624]
[1734406673173,0.7831,4025.4,4024.6,0.05101536]
[1734406673520,0.7831,4025.4,4024.1,1.02821168]
[1734406673863,0.7831,4025.4,4024.2,0.05107719]